[Event "GAMMA Reykjavik Open 2019"]
[Site "Reykjavik"]
[Date "2019.04.16"]
[Round "9.19"]
[White "Christiansen, Johan-Sebastian"]
[Black "Stefansson, Vignir Vatnar"]
[Result "0-1"]
[ECO "B31"]
[WhiteElo "2571"]
[BlackElo "2293"]
[Annotator "ChessBase"]
[PlyCount "105"]
[EventDate "2019.04.04"]
[EventType "swiss"]
[EventCountry "ISL"]
[SourceTitle "playchess.com"]
[Source "ChessBase"]
[SourceQuality "1"]
[TimeControl "40/5400+30:1800+30"]

1. e4 {[%emt 0:00:00]} c5 {[%emt 0:00:00]} 2. Nf3 {[%emt 0:00:00]} Nc6 {[%emt 0:00:00]} 3. Bb5 {[%emt 0:01:26]} g6 {[%emt 0:01:00]} 4. O-O {[%emt 0:03:31]} Bg7 {[%emt 0:00:51]} 5. Re1 {[%emt 0:00:03]} Nf6 {[%emt 0:01:35]} 6. e5 {[%emt 0:00:44]} Nd5 {[%emt 0:00:14]} 7. Nc3 {[%emt 0:01:15]} Nc7 {[%emt 0:00:35]} 8. Bxc6 {[%emt 0:00:11]} dxc6 {[%emt 0:00:25]} 9. Ne4 {[%emt 0:00:04]} Ne6 {[%emt 0:03:10]} 10. d3 {[%emt 0:00:54]} O-O {[%emt 0:02:43]} 11. Be3 {[%emt 0:00:04]} b6 {[%emt 0:04:12]} 12. Qd2 {[%emt 0:00:02]} Re8 {[%emt 0:04:53]} 13. Bh6 {[%emt 0:01:56]} Bh8 {[%emt 0:00:50]} 14. Ng3 {[%emt 0:32:18]} Ng7 {[%emt 0:11:49]} 15. a3 {[%emt 0:07:10]} Nf5 {[%emt 0:04:14]} 16. Bf4 {[%emt 0:02:16]} Nxg3 {[%emt 0:02:41]} 17. Bxg3 {[%emt 0:00:06]} Bg4 {[%emt 0:03:40]} 18. Ng5 {[%emt 0:00:32]} Bf5 {[%emt 0:12:56]} 19. e6 {[%emt 0:08:19]} f6 {[%emt 0:04:34]} 20. Nf7 {[%emt 0:00:24]} Qd5 {[%emt 0:00:16]} 21. Nh6+ {[%emt 0:03:17]} Kf8 {[%emt 0:01:03]} 22. Qe3 {[%emt 0:02:46]} Bg7 {[%emt 0:02:37]} 23. Nxf5 {[%emt 0:00:16]} Qxf5 {[%emt 0:00:06]} 24. b4 {[%emt 0:00:37]} cxb4 {[%emt 0:02:57]} 25. axb4 {[%emt 0:00:05]} Red8 {[%emt 0:00:37]} 26. Ra4 {[%emt 0:02:16]} Qd5 {[%emt 0:03:17]} 27. Bc7 {[%emt 0:03:03]} Rdc8 {[%emt 0:01:44]} 28. Bf4 {[%emt 0:00:56]} f5 {[%emt 0:03:54]} 29. Bh6 {[%emt 0:00:28]} Rd8 {[%emt 0:01:44]} 30. b5 {[%emt 0:09:12]} Qc5 {[%emt 0:05:06]} 31. d4 {[%emt 0:06:48]} Qxb5 {[%emt 0:03:53]} 32. c4 {[%emt 0:00:11]} f4 {[%emt 0:01:26]} 33. Qa3 {[%emt 0:01:02]} Qf5 {[%emt 0:02:21]} 34. Bxg7+ {[%emt 0:00:07]} Kxg7 {[%emt 0:00:04]} 35. Qxe7+ {[%emt 0:00:06]} Kh6 {[%emt 0:00:04]} 36. Qh4+ {[%emt 0:03:15]} Kg7 {[%emt 0:00:09]} 37. Qe7+ {[%emt 0:00:14]} Kh6 {[%emt 0:00:04]} 38. d5 {[%emt 0:10:24]} cxd5 {[%emt 0:01:20]} 39. Qh4+ {[%emt 0:00:30]} Kg7 {[%emt 0:00:34]} 40. e7 {[%emt 0:00:00]} Re8 {[%emt 0:00:00]} 41. cxd5 {[%emt 0:01:07]} Qxd5 {[%emt 0:06:05]} 42. Rxf4 {[%emt 0:04:04]} Qd6 {[%emt 0:01:55]} 43. Rfe4 {[%emt 0:01:25]} Qf6 {[%emt 0:00:36]} 44. Qg4 {[%emt 0:02:24]} Rac8 {[%emt 0:02:29]} 45. Re6 {[%emt 0:01:57]} Qf7 {[%emt 0:00:43]} 46. h4 {[%emt 0:01:04]} Rc5 {[%emt 0:07:41]} 47. Qd4+ {[%emt 0:01:02]} Kg8 {[%emt 0:00:05]} 48. Rf6 {[%emt 0:03:59]} Rd5 {[%emt 0:01:14]} 49. Qc3 {[%emt 0:02:28]} Rc5 {[%emt 0:01:04]} 50. Qf3 {[%emt 0:00:38]} Qg7 {[%emt 0:01:01]} 51. Rf8+ {[%emt 0:01:27]} Rxf8 {[%emt 0:00:40]} 52. e8=Q {[%emt 0:00:05]} Rcf5 {[%emt 0:00:41]} 53. Qb3+ {[%emt 0:01:16]} 0-1

[Event "GAMMA Reykjavik Open 2019"]
[Site "Reykjavik"]
[Date "2019.04.16"]
[Round "9.20"]
[White "Chittka, Julius"]
[Black "Gretarsson, Hjorvar Steinn"]
[Result "0-1"]
[ECO "E52"]
[WhiteElo "2268"]
[BlackElo "2571"]
[Annotator "ChessBase"]
[PlyCount "72"]
[EventDate "2019.04.04"]
[EventType "swiss"]
[EventCountry "ISL"]
[SourceTitle "playchess.com"]
[Source "ChessBase"]
[SourceQuality "1"]
[TimeControl "40/5400+30:1800+30"]

1. d4 {[%emt 0:00:00]} Nf6 {[%emt 0:00:00]} 2. c4 {[%emt 0:00:00]} e6 {[%emt 0:00:00]} 3. Nc3 {[%emt 0:00:00]} Bb4 {[%emt 0:00:00]} 4. e3 {[%emt 0:00:00]} O-O {[%emt 0:00:00]} 5. Bd3 {[%emt 0:00:15]} d5 {[%emt 0:00:00]} 6. Nf3 {[%emt 0:00:18]} b6 {[%emt 0:00:03]} 7. O-O {[%emt 0:00:44]} Bb7 {[%emt 0:00:06]} 8. cxd5 {[%emt 0:01:26]} exd5 {[%emt 0:00:04]} 9. Ne5 {[%emt 0:01:37]} Re8 {[%emt 0:03:56]} 10. Bd2 {[%emt 0:05:20]} Bd6 {[%emt 0:03:48]} 11. f4 {[%emt 0:00:28]} c5 {[%emt 0:00:38]} 12. Be1 {[%emt 0:16:19]} Ba6 {[%emt 0:17:27]} 13. Bh4 {[%emt 0:04:43]} Bxd3 {[%emt 0:07:51]} 14. Qxd3 {[%emt 0:01:02]} Be7 {[%emt 0:01:35]} 15. Rad1 {[%emt 0:09:04]} Nbd7 {[%emt 0:07:57]} 16. Qf5 {[%emt 0:07:08]} g6 {[%emt 0:04:18]} 17. Qh3 {[%emt 0:01:46]} Rc8 {[%emt 0:10:02]} 18. f5 {[%emt 0:07:33]} cxd4 {[%emt 0:17:19]} 19. exd4 {[%emt 0:02:41]} Nf8 {[%emt 0:07:21]} 20. Qf3 {[%emt 0:08:44]} Kg7 {[%emt 0:00:38]} 21. fxg6 {[%emt 0:06:26]} hxg6 {[%emt 0:02:56]} 22. Bxf6+ {[%emt 0:10:42]} Bxf6 {[%emt 0:00:11]} 23. Nxd5 {[%emt 0:02:17]} Nh7 {[%emt 0:00:42]} 24. Rd2 {[%emt 0:06:21]} Re6 {[%emt 0:01:19]} 25. h4 {[%emt 0:03:40]} Qd6 {[%emt 0:03:49]} 26. Rdf2 {[%emt 0:01:14]} Rd8 {[%emt 0:01:23]} 27. Nxf6 {[%emt 0:01:58]} Rxf6 {[%emt 0:00:59]} 28. Qb7 {[%emt 0:01:02]} Qxd4 {[%emt 0:02:17]} 29. Nc6 {[%emt 0:00:50]} Qxf2+ {[%emt 0:00:18]} 30. Rxf2 {[%emt 0:00:09]} Rd1+ {[%emt 0:00:03]} 31. Kh2 {[%emt 0:00:06]} Rxf2 {[%emt 0:00:09]} 32. Qxa7 {[%emt 0:01:01]} Rdd2 {[%emt 0:00:48]} 33. Qxb6 {[%emt 0:00:13]} Rxg2+ {[%emt 0:00:17]} 34. Kh3 {[%emt 0:00:41]} Rge2 {[%emt 0:01:23]} 35. Kg3 {[%emt 0:00:48]} Rd3+ {[%emt 0:00:42]} 36. Kf4 {[%emt 0:00:02]} Nf6 {[%emt 0:00:17]} 0-1

[Event "GAMMA Reykjavik Open 2019"]
[Site "Reykjavik"]
[Date "2019.04.16"]
[Round "9.22"]
[White "Cornette, Matthieu"]
[Black "Abbas, Daniel"]
[Result "1-0"]
[ECO "B23"]
[WhiteElo "2556"]
[BlackElo "2253"]
[Annotator "ChessBase"]
[PlyCount "55"]
[EventDate "2019.04.04"]
[EventType "swiss"]
[EventCountry "ISL"]
[SourceTitle "playchess.com"]
[Source "ChessBase"]
[SourceQuality "1"]
[TimeControl "40/5400+30:1800+30"]

1. e4 {[%emt 0:00:00]} c5 {[%emt 0:00:00]} 2. Nc3 {[%emt 0:00:29]} a6 {[%emt 0:00:00]} 3. g3 {[%emt 0:01:03]} b5 {[%emt 0:00:03]} 4. Bg2 {[%emt 0:00:05]} Bb7 {[%emt 0:00:17]} 5. Nh3 {[%emt 0:00:45]} e6 {[%emt 0:02:16]} 6. d3 {[%emt 0:00:29]} Nf6 {[%emt 0:05:43]} 7. O-O {[%emt 0:01:34]} d6 {[%emt 0:04:30]} 8. f4 {[%emt 0:01:36]} Nc6 {[%emt 0:03:22]} 9. f5 {[%emt 0:00:55]} exf5 {[%emt 0:11:02]} 10. exf5 {[%emt 0:01:11]} Be7 {[%emt 0:00:26]} 11. Nd5 {[%emt 0:00:30]} Nxd5 {[%emt 0:02:41]} 12. Bxd5 {[%emt 0:00:05]} O-O {[%emt 0:02:42]} 13. Nf4 {[%emt 0:00:55]} Ra7 {[%emt 0:05:49]} 14. c3 {[%emt 0:04:37]} Bf6 {[%emt 0:08:02]} 15. Qf3 {[%emt 0:03:33]} Ne5 {[%emt 0:01:02]} 16. Qe4 {[%emt 0:01:23]} Bxd5 {[%emt 0:02:19]} 17. Nxd5 {[%emt 0:00:33]} Re8 {[%emt 0:01:38]} 18. Nxf6+ {[%emt 0:11:41]} gxf6 {[%emt 0:01:31]} 19. d4 {[%emt 0:02:41]} d5 {[%emt 0:00:39]} 20. Qh4 {[%emt 0:01:05]} cxd4 {[%emt 0:00:40]} 21. cxd4 {[%emt 0:00:29]} Nc4 {[%emt 0:00:30]} 22. Bh6 {[%emt 0:01:06]} Kh8 {[%emt 0:00:48]} 23. Rae1 {[%emt 0:07:14]} Rg8 {[%emt 0:05:46]} 24. Rf4 {[%emt 0:04:32]} Nd6 {[%emt 0:00:30]} 25. Rg4 {[%emt 0:05:18]} Rxg4 {[%emt 0:00:14]} 26. Qxg4 {[%emt 0:00:02]} Qg8 {[%emt 0:00:10]} 27. Qf4 {[%emt 0:00:56]} Rd7 {[%emt 0:03:25]} 28. Re7 {[%emt 0:00:49]} 1-0

[Event "GAMMA Reykjavik Open 2019"]
[Site "Reykjavik"]
[Date "2019.04.16"]
[Round "9.23"]
[White "Praggnanandhaa R"]
[Black "Stoyanov, Viktor"]
[Result "1-0"]
[ECO "E60"]
[WhiteElo "2537"]
[BlackElo "2238"]
[Annotator "ChessBase"]
[PlyCount "125"]
[EventDate "2019.04.04"]
[EventType "swiss"]
[EventCountry "ISL"]
[SourceTitle "playchess.com"]
[Source "ChessBase"]
[SourceQuality "1"]
[TimeControl "40/5400+30:1800+30"]

1. Nf3 {[%emt 0:00:32]} Nf6 {[%emt 0:00:00]} 2. g3 {[%emt 0:00:57]} c5 {[%emt 0:00:00]} 3. Bg2 {[%emt 0:01:24]} g6 {[%emt 0:00:04]} 4. b3 {[%emt 0:01:56]} Bg7 {[%emt 0:00:12]} 5. Bb2 {[%emt 0:00:10]} O-O {[%emt 0:00:20]} 6. c4 {[%emt 0:00:33]} Nc6 {[%emt 0:01:23]} 7. O-O {[%emt 0:00:19]} d6 {[%emt 0:09:58]} 8. d4 {[%emt 0:12:59]} cxd4 {[%emt 0:02:31]} 9. Nxd4 {[%emt 0:00:11]} Bd7 {[%emt 0:00:52]} 10. Nc3 {[%emt 0:02:34]} Qb6 {[%emt 0:18:01]} 11. e3 {[%emt 0:10:05]} a5 {[%emt 0:04:14]} 12. Ndb5 {[%emt 0:09:34]} Bg4 {[%emt 0:09:00]} 13. Qd2 {[%emt 0:03:06]} Ne5 {[%emt 0:04:33]} 14. f4 {[%emt 0:04:00]} Nc6 {[%emt 0:06:43]} 15. h3 {[%emt 0:02:03]} Bd7 {[%emt 0:01:40]} 16. Kh2 {[%emt 0:01:22]} Rfc8 {[%emt 0:02:09]} 17. e4 {[%emt 0:05:08]} Qd8 {[%emt 0:04:51]} 18. Rad1 {[%emt 0:01:38]} Be6 {[%emt 0:04:25]} 19. Na4 {[%emt 0:06:23]} Rab8 {[%emt 0:04:53]} 20. Qf2 {[%emt 0:07:05]} Qf8 {[%emt 0:02:31]} 21. Rd2 {[%emt 0:03:43]} Rd8 {[%emt 0:02:37]} 22. Rfd1 {[%emt 0:02:23]} Ne8 {[%emt 0:00:44]} 23. Ba3 {[%emt 0:04:41]} h5 {[%emt 0:08:44]} 24. c5 {[%emt 0:05:47]} dxc5 {[%emt 0:00:59]} 25. Nxc5 {[%emt 0:00:24]} Rxd2 {[%emt 0:01:46]} 26. Rxd2 {[%emt 0:00:10]} Bc8 {[%emt 0:04:46]} 27. e5 {[%emt 0:00:56]} g5 {[%emt 0:00:56]} 28. Bxc6 {[%emt 0:06:56]} bxc6 {[%emt 0:00:07]} 29. Rd8 {[%emt 0:00:14]} cxb5 {[%emt 0:01:28]} 30. Rxc8 {[%emt 0:00:25]} Rxc8 {[%emt 0:00:11]} 31. Nd7 {[%emt 0:00:05]} b4 {[%emt 0:00:41]} 32. Nxf8 {[%emt 0:03:09]} Kxf8 {[%emt 0:00:13]} 33. Bb2 {[%emt 0:00:38]} gxf4 {[%emt 0:00:20]} 34. gxf4 {[%emt 0:00:03]} Bh6 {[%emt 0:00:58]} 35. Bd4 {[%emt 0:01:48]} Nc7 {[%emt 0:00:37]} 36. Qc2 {[%emt 0:03:40]} Bxf4+ {[%emt 0:00:12]} 37. Kh1 {[%emt 0:00:11]} Rd8 {[%emt 0:00:35]} 38. Bb6 {[%emt 0:00:18]} Bxe5 {[%emt 0:00:13]} 39. Bxc7 {[%emt 0:00:16]} Bxc7 {[%emt 0:01:20]} 40. Qxc7 {[%emt 0:00:00]} Rd1+ {[%emt 0:00:00]} 41. Kg2 {[%emt 0:00:17]} Rd2+ {[%emt 0:00:14]} 42. Kf3 {[%emt 0:00:15]} Rxa2 {[%emt 0:00:08]} 43. Qb8+ {[%emt 0:07:32]} Kg7 {[%emt 0:00:07]} 44. Qe5+ {[%emt 0:00:06]} Kg8 {[%emt 0:00:13]} 45. Qg5+ {[%emt 0:00:33]} Kf8 {[%emt 0:00:15]} 46. Qxh5 {[%emt 0:00:06]} e6 {[%emt 0:01:27]} 47. Ke4 {[%emt 0:07:34]} a4 {[%emt 0:01:58]} 48. Qh8+ {[%emt 0:01:54]} Ke7 {[%emt 0:00:04]} 49. Qh4+ {[%emt 0:00:10]} Ke8 {[%emt 0:00:17]} 50. bxa4 {[%emt 0:04:44]} Rxa4 {[%emt 0:00:13]} 51. Ke5 {[%emt 0:00:12]} Ra5+ {[%emt 0:00:38]} 52. Kf6 {[%emt 0:00:15]} b3 {[%emt 0:01:50]} 53. Qb4 {[%emt 0:02:52]} Rf5+ {[%emt 0:00:08]} 54. Kg7 {[%emt 0:00:03]} Rg5+ {[%emt 0:00:35]} 55. Kh6 {[%emt 0:00:08]} Rg6+ {[%emt 0:02:09]} 56. Kh7 {[%emt 0:00:19]} Rg5 {[%emt 0:01:55]} 57. Qxb3 {[%emt 0:01:18]} Rh5+ {[%emt 0:00:07]} 58. Kg7 {[%emt 0:00:08]} Rg5+ {[%emt 0:00:03]} 59. Kh6 {[%emt 0:00:06]} Rf5 {[%emt 0:00:04]} 60. h4 {[%emt 0:00:43]} Ke7 {[%emt 0:00:05]} 61. Kg7 {[%emt 0:01:03]} Rd5 {[%emt 0:00:13]} 62. Qb7+ {[%emt 0:00:15]} Ke8 {[%emt 0:00:05]} 63. Qxf7+ {[%emt 0:00:06]} 1-0

[Event "GAMMA Reykjavik Open 2019"]
[Site "Reykjavik"]
[Date "2019.04.16"]
[Round "9.25"]
[White "Hambleton, Aman"]
[Black "Le Goff, Ronan"]
[Result "1-0"]
[ECO "D35"]
[WhiteElo "2484"]
[BlackElo "2186"]
[Annotator "ChessBase"]
[PlyCount "83"]
[EventDate "2019.04.04"]
[EventType "swiss"]
[EventCountry "ISL"]
[SourceTitle "playchess.com"]
[Source "ChessBase"]
[SourceQuality "1"]
[TimeControl "40/5400+30:1800+30"]

1. c4 {[%emt 0:00:00]} e6 {[%emt 0:00:00]} 2. d4 {[%emt 0:00:43]} d5 {[%emt 0:00:15]} 3. Nc3 {[%emt 0:00:20]} Nf6 {[%emt 0:00:07]} 4. cxd5 {[%emt 0:00:16]} exd5 {[%emt 0:00:12]} 5. Bg5 {[%emt 0:00:10]} Be7 {[%emt 0:00:49]} 6. e3 {[%emt 0:00:10]} c6 {[%emt 0:00:15]} 7. Bd3 {[%emt 0:00:21]} Nbd7 {[%emt 0:00:18]} 8. Nge2 {[%emt 0:00:53]} h6 {[%emt 0:00:20]} 9. Bh4 {[%emt 0:00:33]} Nh5 {[%emt 0:01:30]} 10. Bxe7 {[%emt 0:00:34]} Qxe7 {[%emt 0:00:08]} 11. g4 {[%emt 0:02:20]} Nhf6 {[%emt 0:03:06]} 12. h3 {[%emt 0:00:22]} Nb6 {[%emt 0:05:59]} 13. Qc2 {[%emt 0:01:13]} Bd7 {[%emt 0:04:54]} 14. O-O-O {[%emt 0:05:00]} O-O-O {[%emt 0:03:07]} 15. Kb1 {[%emt 0:03:16]} Kb8 {[%emt 0:04:05]} 16. Ng3 {[%emt 0:01:17]} g6 {[%emt 0:10:01]} 17. Rhe1 {[%emt 0:00:54]} h5 {[%emt 0:16:26]} 18. g5 {[%emt 0:20:51]} Ne8 {[%emt 0:16:23]} 19. h4 {[%emt 0:01:41]} Bg4 {[%emt 0:00:30]} 20. Be2 {[%emt 0:05:04]} Bxe2 {[%emt 0:00:47]} 21. Ncxe2 {[%emt 0:00:22]} Nd6 {[%emt 0:00:57]} 22. Nf4 {[%emt 0:00:21]} Rhe8 {[%emt 0:01:13]} 23. f3 {[%emt 0:13:27]} Ndc4 {[%emt 0:02:16]} 24. e4 {[%emt 0:03:18]} Qb4 {[%emt 0:03:46]} 25. Qc3 {[%emt 0:02:36]} Qb5 {[%emt 0:02:29]} 26. b3 {[%emt 0:03:08]} Na4 {[%emt 0:03:03]} 27. Qc1 {[%emt 0:00:10]} Na5 {[%emt 0:05:07]} 28. Ka1 {[%emt 0:04:32]} Nb6 {[%emt 0:00:49]} 29. e5 {[%emt 0:07:35]} Rg8 {[%emt 0:04:49]} 30. e6 {[%emt 0:03:38]} fxe6 {[%emt 0:00:07]} 31. Nxe6 {[%emt 0:00:12]} Rd7 {[%emt 0:00:59]} 32. f4 {[%emt 0:04:14]} Qb4 {[%emt 0:01:42]} 33. f5 {[%emt 0:02:36]} gxf5 {[%emt 0:00:17]} 34. Nxh5 {[%emt 0:03:35]} Rc8 {[%emt 0:00:21]} 35. Nf6 {[%emt 0:02:33]} Re7 {[%emt 0:00:09]} 36. Re3 {[%emt 0:06:36]} c5 {[%emt 0:03:23]} 37. Nxc5 {[%emt 0:00:50]} Rxe3 {[%emt 0:00:43]} 38. Qxe3 {[%emt 0:01:11]} Qa3 {[%emt 0:01:41]} 39. g6 {[%emt 0:01:40]} Na4 {[%emt 0:01:18]} 40. Rb1 {[%emt 0:00:00]} Rxc5 {[%emt 0:00:00]} 41. dxc5 {[%emt 0:03:09]} Nxc5 {[%emt 0:01:56]} 42. Qxc5 {[%emt 0:00:21]} 1-0

[Event "GAMMA Reykjavik Open 2019"]
[Site "Reykjavik"]
[Date "2019.04.16"]
[Round "9.26"]
[White "Saduakassova, Dinara"]
[Black "Salles, Louis"]
[Result "1-0"]
[ECO "B51"]
[WhiteElo "2461"]
[BlackElo "2221"]
[Annotator "ChessBase"]
[PlyCount "97"]
[EventDate "2019.04.04"]
[EventType "swiss"]
[EventCountry "ISL"]
[SourceTitle "playchess.com"]
[Source "ChessBase"]
[SourceQuality "1"]
[TimeControl "40/5400+30:1800+30"]

1. e4 {[%emt 0:00:00]} c5 {[%emt 0:00:00]} 2. Nf3 {[%emt 0:00:00]} d6 {[%emt 0:00:01]} 3. Bb5+ {[%emt 0:00:00]} Nd7 {[%emt 0:00:23]} 4. O-O {[%emt 0:00:00]} Ngf6 {[%emt 0:00:15]} 5. Re1 {[%emt 0:00:36]} a6 {[%emt 0:00:04]} 6. Bf1 {[%emt 0:00:07]} b6 {[%emt 0:00:56]} 7. c4 {[%emt 0:06:50]} Bb7 {[%emt 0:01:24]} 8. Nc3 {[%emt 0:00:08]} Ne5 {[%emt 0:09:18]} 9. d3 {[%emt 0:04:33]} e6 {[%emt 0:01:15]} 10. Be3 {[%emt 0:08:19]} Be7 {[%emt 0:04:39]} 11. d4 {[%emt 0:10:32]} cxd4 {[%emt 0:09:25]} 12. Bxd4 {[%emt 0:03:08]} Qc7 {[%emt 0:10:26]} 13. Rc1 {[%emt 0:14:42]} O-O {[%emt 0:01:09]} 14. Qe2 {[%emt 0:02:37]} Rac8 {[%emt 0:07:01]} 15. b3 {[%emt 0:00:47]} Qb8 {[%emt 0:13:36]} 16. Red1 {[%emt 0:08:08]} Nxf3+ {[%emt 0:03:45]} 17. Qxf3 {[%emt 0:02:49]} e5 {[%emt 0:01:37]} 18. Bxb6 {[%emt 0:04:51]} Nxe4 {[%emt 0:01:02]} 19. Nd5 {[%emt 0:05:45]} Bxd5 {[%emt 0:01:55]} 20. cxd5 {[%emt 0:00:40]} Ng5 {[%emt 0:12:48]} 21. Qe3 {[%emt 0:00:13]} f5 {[%emt 0:00:30]} 22. Ba7 {[%emt 0:07:07]} Rxc1 {[%emt 0:04:18]} 23. Rxc1 {[%emt 0:00:15]} Qe8 {[%emt 0:01:01]} 24. f3 {[%emt 0:08:52]} Qg6 {[%emt 0:03:05]} 25. Rc7 {[%emt 0:03:08]} Bd8 {[%emt 0:00:18]} 26. Rb7 {[%emt 0:04:12]} f4 {[%emt 0:00:20]} 27. Qd3 {[%emt 0:00:09]} e4 {[%emt 0:00:29]} 28. fxe4 {[%emt 0:00:07]} f3 {[%emt 0:00:44]} 29. g3 {[%emt 0:02:49]} Qf6 {[%emt 0:05:31]} 30. Bd4 {[%emt 0:00:43]} f2+ {[%emt 0:02:54]} 31. Kh1 {[%emt 0:01:44]} Qf3+ {[%emt 0:02:56]} 32. Qxf3 {[%emt 0:00:06]} Rxf3 {[%emt 0:00:23]} 33. Rxg7+ {[%emt 0:00:22]} Kf8 {[%emt 0:00:08]} 34. Kg2 {[%emt 0:00:26]} Rf7 {[%emt 0:02:03]} 35. Rxf7+ {[%emt 0:00:04]} Kxf7 {[%emt 0:00:06]} 36. Kxf2 {[%emt 0:01:18]} Nxe4+ {[%emt 0:00:21]} 37. Ke3 {[%emt 0:00:04]} Nf6 {[%emt 0:00:26]} 38. Bxf6 {[%emt 0:00:19]} Kxf6 {[%emt 0:00:18]} 39. Bxa6 {[%emt 0:00:05]} Ke5 {[%emt 0:00:17]} 40. Bb7 {[%emt 0:00:00]} h5 {[%emt 0:00:00]} 41. b4 {[%emt 0:01:01]} Bb6+ {[%emt 0:02:11]} 42. Kd3 {[%emt 0:00:08]} Bg1 {[%emt 0:01:31]} 43. h3 {[%emt 0:00:37]} Bf2 {[%emt 0:01:17]} 44. g4 {[%emt 0:01:13]} h4 {[%emt 0:00:24]} 45. a4 {[%emt 0:01:25]} Kf4 {[%emt 0:01:47]} 46. Bc8 {[%emt 0:00:40]} Be1 {[%emt 0:04:47]} 47. Kc4 {[%emt 0:00:07]} Bd2 {[%emt 0:01:41]} 48. a5 {[%emt 0:00:18]} Kg3 {[%emt 0:00:45]} 49. a6 {[%emt 0:00:17]} 1-0

[Event "GAMMA Reykjavik Open 2019"]
[Site "Reykjavik"]
[Date "2019.04.16"]
[Round "9.27"]
[White "Maisuradze, Nino"]
[Black "Suleymenov, Alisher"]
[Result "0-1"]
[ECO "A50"]
[WhiteElo "2168"]
[BlackElo "2431"]
[Annotator "NA"]
[PlyCount "68"]
[EventDate "2019.04.04"]
[EventType "swiss"]
[EventCountry "ISL"]
[SourceTitle "playchess.com"]
[Source "ChessBase"]
[SourceQuality "1"]
[TimeControl "40/5400+30:1800+30"]

1. d4 {[%emt 0:00:11]} Nf6 {[%emt 0:00:00]} 2. c4 {[%emt 0:00:12]} Nc6 {[%emt 0:00:17]} 3. Nc3 {[%emt 0:07:56]} e5 {[%emt 0:00:07]} 4. d5 {[%emt 0:00:29]} Ne7 {[%emt 0:00:06]} 5. h4 {[%emt 0:00:45]} Neg8 {[%emt 0:01:27]} 6. e3 {[%emt 0:04:06]} Bb4 {[%emt 0:33:16]} 7. Bd2 {[%emt 0:00:52]} Ne7 {[%emt 0:02:55]} 8. Bd3 {[%emt 0:25:10]} O-O {[%emt 0:00:23]} 9. Qc2 {[%emt 0:01:49]} d6 {[%emt 0:10:39]} 10. Nge2 {[%emt 0:07:32]} c6 {[%emt 0:01:06]} 11. e4 {[%emt 0:28:21]} a6 {[%emt 0:03:07]} 12. f3 {[%emt 0:03:04]} Nd7 {[%emt 0:17:37]} 13. a3 {[%emt 0:02:44]} Bxc3 {[%emt 0:00:59]} 14. Nxc3 {[%emt 0:00:29]} Nc5 {[%emt 0:03:17]} 15. dxc6 {[%emt 0:04:57]} bxc6 {[%emt 0:09:14]} 16. Be3 {[%emt 0:00:19]} Rb8 {[%emt 0:04:45]} 17. b4 {[%emt 0:03:55]} Ne6 {[%emt 0:00:21]} 18. Qf2 {[%emt 0:02:48]} f5 {[%emt 0:05:02]} 19. exf5 {[%emt 0:01:22]} Nxf5 {[%emt 0:00:01]} 20. Bxf5 {[%emt 0:02:15]} Rxf5 {[%emt 0:00:02]} 21. Rd1 {[%emt 0:00:08]} Bb7 {[%emt 0:02:25]} 22. c5 {[%emt 0:00:48]} d5 {[%emt 0:00:09]} 23. Ne4 {[%emt 0:00:13]} a5 {[%emt 0:01:11]} 24. Nd6 {[%emt 0:00:24]} Rf8 {[%emt 0:00:01]} 25. Qb2 {[%emt 0:01:03]} d4 {[%emt 0:02:51]} 26. Qa2 {[%emt 0:00:05]} Qd7 {[%emt 0:00:11]} 27. Nc4 {[%emt 0:00:39]} Qd5 {[%emt 0:00:41]} 28. Qc2 {[%emt 0:00:14]} axb4 {[%emt 0:00:12]} 29. axb4 {[%emt 0:00:04]} Ba6 {[%emt 0:00:43]} 30. Nb6 {[%emt 0:00:02]} Rxb6 {[%emt 0:00:48]} 31. cxb6 {[%emt 0:00:02]} Rxf3 {[%emt 0:00:44]} 32. Bf2 {[%emt 0:02:14]} Rc3 {[%emt 0:00:42]} 33. b7 {[%emt 0:00:45]} Rxc2 {[%emt 0:00:19]} 34. b8=Q+ {[%emt 0:00:02]} Nf8 {[%emt 0:00:05]} 0-1

[Event "GAMMA Reykjavik Open 2019"]
[Site "Reykjavik"]
[Date "2019.04.16"]
[Round "9.28"]
[White "Eggleston, David J"]
[Black "Ingvason, Johann"]
[Result "1/2-1/2"]
[ECO "C92"]
[WhiteElo "2401"]
[BlackElo "2181"]
[Annotator "NA"]
[PlyCount "83"]
[EventDate "2019.04.04"]
[EventType "swiss"]
[EventCountry "ISL"]
[SourceTitle "playchess.com"]
[Source "ChessBase"]
[SourceQuality "1"]
[TimeControl "40/5400+30:1800+30"]

1. e4 {[%emt 0:05:45]} e5 {[%emt 0:00:00]} 2. Nf3 {[%emt 0:00:07]} Nc6 {[%emt 0:00:00]} 3. Bb5 {[%emt 0:00:16]} a6 {[%emt 0:00:00]} 4. Ba4 {[%emt 0:00:04]} Nf6 {[%emt 0:00:00]} 5. d3 {[%emt 0:00:24]} d6 {[%emt 0:00:54]} 6. c3 {[%emt 0:00:25]} Be7 {[%emt 0:00:15]} 7. O-O {[%emt 0:00:18]} O-O {[%emt 0:00:11]} 8. Re1 {[%emt 0:00:12]} h6 {[%emt 0:02:27]} 9. h3 {[%emt 0:00:30]} b5 {[%emt 0:00:49]} 10. Bc2 {[%emt 0:00:30]} Re8 {[%emt 0:00:30]} 11. Nbd2 {[%emt 0:00:25]} Bf8 {[%emt 0:00:08]} 12. a4 {[%emt 0:02:48]} Bb7 {[%emt 0:04:20]} 13. d4 {[%emt 0:03:22]} exd4 {[%emt 0:08:11]} 14. cxd4 {[%emt 0:00:00]} Nb4 {[%emt 0:00:08]} 15. Bb1 {[%emt 0:00:00]} c5 {[%emt 0:00:13]} 16. b3 {[%emt 0:10:50]} Rc8 {[%emt 0:03:30]} 17. axb5 {[%emt 0:12:18]} axb5 {[%emt 0:00:14]} 18. Ba3 {[%emt 0:08:14]} Qa5 {[%emt 0:02:16]} 19. Bb2 {[%emt 0:00:12]} Qb6 {[%emt 0:00:12]} 20. Bc3 {[%emt 0:04:03]} g6 {[%emt 0:17:37]} 21. d5 {[%emt 0:12:25]} Bg7 {[%emt 0:08:21]} 22. Nf1 {[%emt 0:00:19]} Nd7 {[%emt 0:04:09]} 23. Bxg7 {[%emt 0:00:46]} Kxg7 {[%emt 0:00:02]} 24. Qd2 {[%emt 0:01:06]} Ra8 {[%emt 0:01:19]} 25. Rxa8 {[%emt 0:01:53]} Bxa8 {[%emt 0:02:35]} 26. h4 {[%emt 0:01:46]} Ne5 {[%emt 0:00:56]} 27. Nxe5 {[%emt 0:02:19]} dxe5 {[%emt 0:00:07]} 28. h5 {[%emt 0:00:53]} Qd6 {[%emt 0:00:27]} 29. Ne3 {[%emt 0:01:03]} Nc6 {[%emt 0:00:57]} 30. hxg6 {[%emt 0:06:26]} fxg6 {[%emt 0:00:17]} 31. Ng4 {[%emt 0:01:56]} g5 {[%emt 0:00:29]} 32. Ne3 {[%emt 0:01:09]} Rf8 {[%emt 0:13:24]} 33. Nf5+ {[%emt 0:00:46]} Rxf5 {[%emt 0:00:07]} 34. exf5 {[%emt 0:00:05]} Nd4 {[%emt 0:00:16]} 35. Qa5 {[%emt 0:04:05]} Bxd5 {[%emt 0:01:08]} 36. Bd3 {[%emt 0:03:03]} Kf6 {[%emt 0:06:19]} 37. Bxb5 {[%emt 0:02:18]} Bxg2 {[%emt 0:09:11]} 38. Kxg2 {[%emt 0:00:25]} Qd5+ {[%emt 0:00:09]} 39. Kg1 {[%emt 0:00:21]} Nf3+ {[%emt 0:01:33]} 40. Kf1 {[%emt 0:00:00]} Nh2+ {[%emt 0:00:00]} 41. Kg1 {[%emt 0:10:11]} Nf3+ {[%emt 0:11:07]} 42. Kf1 {[%emt 0:03:00]} 1/2-1/2